bitfinex-derivatives/quotes_ETHF0:USTF0_20241007
["timestamp","ask_amount","ask_price","bid_price","bid_amount"]
[1728287199763,1.7344,2480.4,2480.3,3.49003]
[1728287200055,2.1434,2480.4,2480.1,0.28225]
[1728287200261,1.31,2480.2,2480.1,0.28225]
[1728287200460,1.31,2480.2,2480.1,0.79417078]
[1728287200854,1.31,2480.2,2480.1,0.51192078]
[1728287201060,1.31,2480.2,2480.0,0.48226]
[1728287202353,1.31,2480.2,2480.0,0.2]
[1728287202851,1.59225,2480.2,2480.0,0.2]
[1728287203058,1.31,2480.2,2480.0,0.2]
[1728287203257,1.59225,2480.2,2480.0,0.2]
[1728287204556,0.28226,2480.1,2480.0,0.2]
[1728287204756,5.342,2480.2,2480.0,0.2]
[1728287204961,1.31,2480.2,2480.0,0.2]
[1728287208765,3.6233,2480.3,2480.2,0.28224]
[1728287208968,0.8334,2480.4,2480.3,0.28223]
[1728287209261,0.409,2480.4,2480.3,0.28223]
[1728287215859,1.719,2480.4,2480.3,0.28223]
[1728287219465,1.719,2480.4,2480.2,0.28224]
[1728287220470,1.719,2480.4,2480.3,0.28223]
[1728287221670,1.719,2480.4,2480.1,0.809]
[1728287221866,1.719,2480.4,2480.2,0.28224]
[1728287222067,1.719,2480.4,2480.3,0.28223]
[1728287223076,1.31,2480.6,2480.5,0.28221]
[1728287223278,3.2078,2481.1,2481.0,0.28215]
[1728287223483,4.5178,2481.1,2480.8,0.28217]
[1728287223785,1.31,2481.0,2480.9,0.28216]
[1728287224582,4.5178,2481.1,2481.0,0.28215]
[1728287225881,0.3951,2481.2,2480.8,1.31]
[1728287226080,7.3348,2481.7,2480.9,4.5178]
[1728287226287,7.3348,2481.7,2481.3,0.28211]
[1728287226288,1.31,2481.4,2481.3,0.28211]
[1728287227681,1.31,2481.4,2481.2,0.28212]
[1728287227883,1.31,2481.3,2481.2,0.28212]
[1728287228389,2.83,2481.3,2481.2,0.28212]
[1728287230890,0.3886,2481.6,2481.3,0.28211]
[1728287231191,0.3886,2481.6,2481.0,2.83]
[1728287231389,0.3886,2481.6,2481.5,0.2821]
[1728287231595,3.11205,2482.0,2481.2,7.0998]
[1728287231894,0.3981,2481.9,2481.7,0.28207]
[1728287232090,0.3981,2481.9,2481.8,0.418]
[1728287232390,4.4277,2481.9,2481.8,0.418]
[1728287233285,4.4277,2481.9,2481.2,3.2078]
[1728287233590,3.1121,2481.5,2481.3,0.3934]
[1728287233784,0.3912,2481.4,2481.3,0.3934]
[1728287233979,0.7885,2481.4,2481.3,0.3934]
[1728287234993,0.7885,2481.4,2480.9,7.3978]
[1728287235291,2.83,2481.2,2481.0,0.3934]
[1728287235491,3.11213,2481.2,2481.0,0.3934]
[1728287235796,2.83,2481.2,2481.0,0.3934]
[1728287236288,2.83,2481.2,2481.0,0.67555]
[1728287237500,2.83,2481.2,2481.0,0.3934]
[1728287237889,2.83,2481.2,2481.0,0.67555]
[1728287238092,7.2382,2481.1,2480.3,4.19]
[1728287238302,2.83,2480.7,2480.6,0.2822]
[1728287239390,0.70697,2480.9,2480.7,0.28218]
[1728287239391,3.2548,2480.9,2480.7,0.28218]
[1728287239591,3.2548,2480.9,2480.8,0.28218]
[1728287240093,7.286,2480.9,2480.8,0.28218]
[1728287240401,7.286,2480.9,2480.7,0.28218]
[1728287240589,3.2548,2480.9,2480.7,0.28218]
[1728287241496,3.2548,2480.9,2480.5,0.4164]
[1728287241689,3.11219,2480.7,2480.5,0.4164]
[1728287243808,2.83,2480.7,2480.4,0.28222]
[1728287246704,3.11219,2480.7,2480.4,0.28222]
[1728287246903,2.83,2480.7,2480.4,0.28222]
[1728287247305,2.83,2480.7,2480.2,0.4205]
[1728287247501,2.83,2480.7,2480.5,0.28221]
[1728287248505,2.83,2480.7,2480.2,0.4205]
[1728287248506,3.11219,2480.7,2480.4,0.28222]
[1728287248705,2.83,2480.7,2480.2,0.4205]
[1728287249409,2.83,2480.7,2480.4,0.28221]
[1728287250207,2.83,2480.7,2480.5,0.28221]
[1728287251312,2.83,2480.7,2480.2,0.4205]
[1728287251511,0.4071,2480.6,2480.4,0.28222]
[1728287252009,0.3993,2480.5,2480.4,0.28222]
[1728287253906,0.70533,2481.2,2480.2,0.4205]
[1728287253907,3.11217,2480.9,2480.2,0.4205]
[1728287254118,0.3993,2480.8,2480.7,0.28218]
[1728287258015,0.68148,2480.8,2480.5,0.70741]
[1728287258315,0.3993,2480.8,2480.5,0.4252]
[1728287258518,0.2822,2480.6,2480.3,3.49003]
[1728287258816,0.2822,2480.6,2480.4,0.28222]
[1728287259314,4.3134,2480.6,2480.3,3.49003]
[1728287259515,0.2822,2480.6,2480.3,3.49003]
[1728287260017,0.2822,2480.6,2480.3,3.2078]
[1728287260212,0.2822,2480.6,2480.4,0.28222]
[1728287260413,3.6713,2480.7,2480.4,0.28222]
[1728287260608,7.98469,2480.7,2480.4,0.28222]
[1728287261707,7.7025,2480.7,2480.4,0.28222]
[1728287261913,0.2822,2480.6,2480.3,3.49003]
[1728287262316,3.6713,2480.7,2480.3,3.2078]
[1728287262617,3.95349,2480.7,2480.4,0.28222]
[1728287262818,7.7025,2480.7,2480.3,3.2078]
[1728287263020,0.2822,2480.6,2480.3,3.2078]
[1728287263216,0.2822,2480.6,2480.4,0.28222]
[1728287263517,3.95349,2480.7,2480.4,0.28222]
[1728287268426,1.31,2480.6,2480.4,0.28222]
[1728287268923,1.31,2480.6,2480.5,0.28221]
[1728287269325,5.3412,2480.6,2480.5,0.28221]
[1728287270026,5.3412,2480.6,2480.3,3.2078]
[1728287270224,1.5922,2480.6,2480.4,0.28222]
[1728287270620,1.31,2480.6,2480.4,0.28222]
[1728287271322,1.31,2480.6,2480.5,0.28221]
[1728287271719,5.3412,2480.6,2480.5,0.28221]
[1728287271920,5.3412,2480.6,2480.4,0.28221]
[1728287272123,1.31,2480.6,2480.4,0.28221]
[1728287272518,0.68148,2480.8,2480.5,0.2822]
[1728287272725,0.3993,2480.8,2480.6,0.7763]
[1728287272925,0.3993,2480.8,2480.7,0.28219]
[1728287274822,1.31,2480.9,2480.6,0.7763]
[1728287275026,1.6999,2481.1,2480.6,2.0863]
[1728287275225,1.6999,2481.1,2480.9,0.28216]
[1728287276538,0.3899,2481.1,2480.9,0.28216]
[1728287278335,0.67204,2481.1,2480.9,0.28216]
[1728287279747,0.67204,2481.1,2480.8,0.28217]
[1728287279947,0.67204,2481.1,2480.9,0.51270912]
[1728287280149,0.67204,2481.1,2480.9,0.28216]
[1728287280448,0.67204,2481.1,2480.6,0.7763]
[1728287280646,0.67204,2481.1,2480.8,0.28217]
[1728287281147,0.67204,2481.1,2480.9,0.51283654]
[1728287281348,0.67204,2481.1,2481.0,0.90193445]
[1728287281652,0.3899,2481.1,2481.0,0.90193445]
[1728287281852,0.67204,2481.1,2481.0,0.90193445]
[1728287282152,0.67204,2481.1,2481.0,0.389]
[1728287284141,0.67204,2481.1,2481.0,0.9020247]
[1728287284347,0.67204,2481.1,2481.0,0.389]
[1728287287050,0.67204,2481.1,2481.0,0.90193794]
[1728287287251,0.67204,2481.1,2481.0,0.389]
[1728287296658,1.98204,2481.1,2481.0,0.389]
[1728287297757,1.6999,2481.1,2480.6,0.3867]
[1728287297962,0.28216,2481.0,2480.7,0.28218]
[1728287298254,0.28216,2481.0,2480.8,0.51280804]
[1728287298461,0.28216,2481.0,2480.9,0.51280804]
[1728287300864,0.67205,2481.1,2480.9,0.51280804]
[1728287301056,0.3899,2481.1,2480.8,0.28217]
[1728287301258,0.3899,2481.1,2480.9,0.51280508]
[1728287301561,0.67205,2481.1,2480.8,0.28217]
[1728287301764,0.67205,2481.1,2480.9,0.51279442]
[1728287301951,0.67205,2481.1,2480.8,0.28217]
[1728287302155,0.67205,2481.1,2480.6,2.1114]
[1728287302156,0.67205,2481.1,2480.9,0.79495341]
[1728287302356,0.67205,2481.1,2480.9,0.28216]
[1728287302764,0.67205,2481.1,2480.8,0.28217]
[1728287302957,0.67205,2481.1,2480.9,0.51278342]
[1728287303164,0.3899,2481.1,2480.6,2.1114]
[1728287303368,0.3899,2481.1,2481.0,0.28215]
[1728287303668,0.3899,2481.1,2480.9,0.28216]
[1728287303859,0.3899,2481.1,2481.0,0.7955]
[1728287304565,0.3899,2481.1,2481.0,1.07765]
[1728287304958,0.3899,2481.1,2481.0,0.7955]
[1728287305561,0.3899,2481.1,2481.0,1.07765]
[1728287305864,0.3899,2481.1,2481.0,0.7955]
[1728287306267,0.3899,2481.1,2481.0,1.07765]
[1728287306562,0.3899,2481.1,2481.0,1.59043096]
[1728287307168,0.3933,2481.5,2481.0,1.30828096]
[1728287307369,0.3846,2481.4,2481.2,0.28212]
[1728287308571,0.3846,2481.4,2481.3,0.28212]
[1728287309063,0.3846,2481.4,2481.3,0.79483449]
[1728287311873,0.28208,2481.7,2481.4,0.2821]
[1728287312170,0.3848,2481.7,2481.6,1.31]
[1728287312368,0.3848,2481.7,2481.6,1.59209]
[1728287312771,0.3848,2481.7,2481.6,2.10452755]
[1728287313170,0.3848,2481.7,2481.6,1.59209]
[1728287313569,0.3848,2481.7,2481.6,2.10441788]
[1728287314071,0.3848,2481.7,2481.6,1.59209]
[1728287314464,4.0024,2482.2,2481.6,1.31]
[1728287314670,0.4165,2482.0,2481.8,1.31]
[1728287314865,0.4165,2482.0,2481.9,1.10815]
[1728287317681,4.89781931,2482.6,2481.9,1.10815]
[1728287317682,3.2078,2482.5,2482.2,0.28201]
[1728287317978,3.5992,2482.5,2482.3,0.69311]
[1728287319277,3.5992,2482.5,2482.4,0.28199]
[1728287319579,3.5992,2482.5,2482.3,0.6931]
[1728287319970,3.5992,2482.5,2482.4,0.28199]
[1728287320374,3.5992,2482.5,2482.3,0.4111]
[1728287320577,3.5992,2482.5,2482.3,0.6931]
[1728287320779,3.5992,2482.5,2482.3,0.4111]
[1728287321174,3.5992,2482.5,2482.3,0.6931]
[1728287321479,3.5992,2482.5,2481.9,0.4129]
[1728287321480,4.9092,2482.5,2481.9,0.4129]
[1728287321682,1.31,2482.2,2482.0,0.69923]
[1728287322069,0.3847,2482.1,2481.6,1.4477]
[1728287322287,1.31,2482.0,2481.7,0.7956]
[1728287322584,1.31,2482.0,2481.8,0.28206]
[1728287325676,1.31,2482.0,2481.9,0.28205]
[1728287328086,1.31,2482.0,2481.8,0.28206]
[1728287328585,1.31,2482.0,2481.9,0.28205]
[1728287334285,1.31,2482.0,2481.7,0.3928]
[1728287334486,1.31,2482.0,2481.8,0.28206]
[1728287334683,5.3388,2481.9,2480.8,8.0023276]
[1728287334891,1.31,2481.4,2481.3,0.28211]
[1728287337288,2.4991,2481.5,2481.0,1.31]
[1728287337479,2.4991,2481.5,2481.4,0.28211]
[1728287340789,2.4991,2481.5,2481.3,0.28211]
[1728287340987,2.4991,2481.5,2481.0,1.31]
[1728287341177,2.4991,2481.5,2481.1,0.28214]
[1728287341375,1.59211,2481.4,2481.1,0.28213]
[1728287341589,1.31,2481.4,2481.2,0.28213]
[1728287341780,1.59211,2481.4,2481.1,0.28214]
[1728287341981,1.59211,2481.4,2481.2,0.28213]
[1728287342181,1.31,2481.4,2480.9,0.8144]
[1728287342390,1.31,2481.2,2481.1,0.28213]
[1728287343488,1.31,2481.2,2481.0,0.28215]
[1728287343784,0.4134,2481.1,2481.0,0.28215]
[1728287349495,0.28211,2481.4,2480.9,0.8144]
[1728287349697,1.7036,2481.4,2481.2,0.28212]
[1728287349893,1.7036,2481.4,2481.3,0.4081]
[1728287350295,6.01611,2481.4,2481.3,0.4081]
[1728287350491,5.734,2481.4,2481.3,0.4081]
[1728287353005,0.28214,2481.2,2480.9,0.67586]
[1728287353202,1.31,2481.1,2480.9,1.10026]
[1728287353705,0.408,2481.0,2480.9,1.10026]
[1728287354806,0.408,2481.0,2480.9,0.8181]
[1728287355305,0.408,2481.0,2480.9,1.10026]
[1728287356403,4.4384,2481.0,2480.4,0.35159677]
[1728287356599,0.408,2481.0,2480.6,0.3851]
[1728287356806,1.31,2480.7,2480.6,0.3851]
[1728287359199,1.59219,2480.7,2480.3,3.49003]
[1728287359500,0.3942,2480.6,2480.3,4.28593]
[1728287360407,1.31,2480.5,2480.3,0.7959]
[1728287360998,1.59222,2480.5,2480.3,0.7959]
[1728287361298,1.31,2480.5,2480.3,0.7959]
[1728287361709,1.59222,2480.5,2480.3,0.7959]
[1728287371113,0.28225,2480.2,2480.0,3.4078]
[1728287371313,0.28225,2480.2,2480.0,1.0151]
[1728287371314,0.66636,2480.1,2480.0,1.0151]
[1728287371510,0.3841,2480.1,2480.0,1.0151]
[1728287373414,0.66636,2480.1,2480.0,0.6086]
[1728287373914,0.3841,2480.1,2480.0,0.6086]
[1728287374116,0.66636,2480.1,2480.0,0.6086]
[1728287375512,4.69836,2480.1,2480.0,0.2]
[1728287379713,6.00836,2480.1,2480.0,0.2]
[1728287382514,1.97636,2480.1,2480.0,0.2]
[1728287382724,0.3841,2480.1,2480.0,0.2]
[1728287383316,0.3841,2480.1,2480.0,0.9799]
[1728287385427,0.3841,2480.1,2480.0,1.26217]
[1728287385822,0.3841,2480.1,2480.0,0.9799]
[1728287386633,0.3841,2480.1,2480.0,1.26217]
[1728287387016,0.3841,2480.1,2480.0,0.9799]
[1728287387515,0.3841,2480.1,2480.0,1.26217]
[1728287388029,0.3841,2480.1,2480.0,0.9799]
[1728287391133,14.9339,2480.1,2479.4,3.2078]
[1728287391428,1.31,2479.5,2479.4,3.2078]
[1728287391824,1.712,2479.5,2479.4,3.2078]
[1728287392734,0.2823,2479.8,2479.4,3.49013]
[1728287392926,0.4118,2479.7,2479.6,0.28231]
[1728287393127,0.4118,2479.7,2479.5,0.4185]
[1728287393332,0.4118,2479.7,2479.6,0.28231]
[1728287393826,8.04037,2480.4,2479.6,4.0328]
[1728287394026,1.31,2480.1,2479.8,0.28229]
[1728287394335,1.31,2480.1,2479.9,0.4185]
[1728287394533,1.59226,2480.1,2479.9,0.4185]
[1728287395523,1.31,2480.1,2479.9,0.4185]
[1728287396328,0.4118,2480.3,2480.1,0.28225]
[1728287396528,0.4118,2480.3,2479.9,0.4185]
[1728287396529,0.4118,2480.3,2480.2,0.67294]
[1728287396725,0.4118,2480.3,2479.5,4.19]
[1728287396726,4.032,2480.2,2479.5,4.19]
[1728287397034,1.31,2479.7,2479.6,0.3907]
[1728287397836,1.7328,2479.7,2479.6,0.3907]
[1728287400432,0.7051,2479.7,2479.6,0.3907]
[1728287400634,0.4228,2479.7,2479.6,0.3907]
[1728287401932,0.7051,2479.7,2479.6,0.3907]
[1728287402137,0.4228,2479.7,2479.6,0.3907]
[1728287402434,7.2856,2479.7,2479.4,3.6052]
[1728287402642,3.92731,2479.7,2479.4,3.49013]
[1728287403339,3.92731,2479.7,2479.5,0.51244558]
[1728287403526,3.92731,2479.7,2479.4,3.49013]
[1728287404742,3.645,2479.7,2479.4,3.49013]
[1728287405539,3.645,2479.7,2479.4,3.2078]
[1728287405733,3.645,2479.7,2479.5,0.79490414]
[1728287405935,3.645,2479.7,2479.5,0.28232]
[1728287406433,4.17403411,2480.3,2479.4,3.2078]
[1728287406434,3.2078,2480.3,2479.6,4.0328]
[1728287406637,0.70549,2480.7,2480.1,0.28226]
[1728287406638,0.4125,2480.2,2480.1,0.28226]
[1728287406830,0.28222,2480.4,2480.2,0.3841]
[1728287407030,0.28222,2480.4,2480.3,0.4231]
[1728287408635,0.67812,2480.4,2480.3,0.4231]
[1728287408835,0.28225,2480.2,2480.0,0.4024]
[1728287409039,3.11225,2480.2,2480.1,0.4235]
[1728287409534,7.14425,2480.2,2480.1,0.4235]
[1728287410040,6.862,2480.2,2479.7,3.2078]
[1728287410250,2.83,2479.8,2479.7,0.417]
[1728287410635,2.83,2479.8,2479.7,0.92972071]
[1728287410850,3.11229,2479.8,2479.7,0.417]
[1728287411137,7.14509,2479.8,2479.7,0.417]
[1728287411843,6.8628,2479.8,2479.7,0.417]
[1728287412434,7.14509,2479.8,2479.7,0.417]
[1728287414537,0.28231,2479.7,2479.4,0.28233]
[1728287414837,0.28231,2479.7,2479.5,0.51298926]
[1728287414838,2.83,2479.6,2479.5,0.51298926]
[1728287416337,7.14511,2479.6,2479.5,0.51298926]
[1728287416542,7.14511,2479.6,2479.1,0.28236]
[1728287416543,0.28233,2479.5,2479.1,0.28236]
[1728287416739,2.83,2479.2,2479.1,0.28236]
[1728287417042,2.83,2479.2,2479.1,0.51314694]
[1728287417244,6.8636,2479.2,2479.1,0.51314694]
[1728287417442,0.28237,2479.1,2479.0,0.422]
[1728287417641,0.69417,2479.1,2479.0,0.93514456]
[1728287417938,10.72777,2479.1,2479.0,0.51314456]
[1728287418149,13.6532,2479.1,2478.5,0.422]
[1728287418441,3.6196,2479.1,2478.6,0.7953533]
[1728287418642,2.83,2478.9,2478.8,0.2824]
[1728287418845,3.2078,2479.1,2479.0,0.28238]
[1728287418846,2.83,2479.1,2479.0,0.28238]
[1728287419143,2.83,2479.1,2478.9,0.8238]
[1728287419340,2.83,2479.1,2479.0,0.28238]
[1728287422347,2.83,2479.1,2478.9,1.10619]
[1728287422645,2.83,2479.1,2478.9,0.8238]
[1728287422847,2.83,2479.1,2478.9,1.10619]
[1728287423654,2.83,2479.1,2478.9,0.8238]
[1728287424349,2.83,2479.1,2478.9,1.10619]
[1728287424550,2.83,2479.1,2478.9,0.8238]
[1728287425642,3.11237,2479.1,2478.9,0.8238]
[1728287425838,0.28238,2479.0,2478.9,0.422]
[1728287426045,0.69398,2479.0,2478.9,0.422]
[1728287426246,4.72758,2479.0,2478.9,0.422]
[1728287426448,4.4452,2479.0,2478.9,0.422]
[1728287427656,4.4452,2479.0,2478.9,0.70439]
[1728287427852,4.4452,2479.0,2478.9,0.422]
[1728287428149,4.0336,2479.0,2478.9,0.422]
[1728287428349,2.83,2479.1,2478.9,0.422]
[1728287428647,0.3934,2479.0,2478.9,0.422]
[1728287429449,0.3934,2479.0,2478.9,0.70439]
[1728287430947,6.0378,2479.7,2478.9,10.4934]
[1728287431152,0.3934,2479.6,2479.5,0.28232]
[1728287431348,2.83,2479.9,2479.2,3.2078]
[1728287431655,2.83,2479.3,2479.2,0.28235]
[1728287431853,2.83,2479.3,2479.0,0.3883]
[1728287432159,0.4149,2479.2,2479.0,0.3883]
[1728287432652,0.4149,2479.2,2479.0,0.67068]
[1728287433558,0.4149,2479.2,2479.0,0.3883]
[1728287433753,0.4149,2479.2,2479.0,0.67067]
[1728287433949,2.83,2479.4,2479.0,0.3883]
[1728287434150,2.83,2479.4,2479.1,0.61876]
[1728287434350,3.11234,2479.4,2479.1,0.61876]
[1728287434656,2.83,2479.4,2479.1,0.61876]
[1728287436158,2.83,2479.4,2479.2,0.28236]
[1728287436354,3.2078,2479.5,2479.1,0.3364]
[1728287436554,3.2078,2479.5,2479.3,0.28234]
[1728287436755,3.2078,2479.5,2479.4,0.4127]
[1728287437350,13.2406,2479.5,2479.2,0.28235]
[1728287437556,0.28237,2479.1,2478.7,0.28241]
[1728287437756,3.231,2479.0,2478.7,0.28241]
[1728287437952,2.83,2478.8,2478.7,0.28241]
[1728287438153,2.83,2478.8,2478.6,0.28242]
[1728287438351,2.83,2478.8,2478.7,0.401]
[1728287439062,2.83,2478.9,2478.7,0.401]
[1728287439364,2.83,2478.9,2478.7,0.68341]
[1728287440458,2.83,2478.9,2478.7,0.401]
[1728287440656,2.83,2478.9,2478.7,0.68341]
[1728287442458,0.28243,2478.6,2478.5,3.2078]
[1728287442663,3.11243,2478.6,2478.3,0.28246]
[1728287442863,0.3872,2478.5,2478.3,0.28246]
[1728287446660,2.83,2479.2,2478.4,7.37703855]
[1728287446965,0.67448,2479.1,2478.7,3.49021]
[1728287447155,0.67448,2479.1,2478.8,0.6787]
[1728287448057,0.67448,2479.1,2478.9,0.4038]
[1728287448463,0.3921,2479.1,2478.9,0.4038]
[1728287448766,0.67447,2479.1,2478.9,0.4038]
[1728287450562,0.3921,2479.1,2478.9,0.68619]
[1728287450768,0.3921,2479.1,2479.0,0.28238]
[1728287451272,0.3921,2479.1,2478.9,0.68619]
[1728287452669,6.0378,2479.6,2479.0,4.0336]
[1728287452860,6.32012,2479.6,2479.3,0.28235]
[1728287453162,6.32012,2479.6,2479.4,0.4065]
[1728287453361,6.0378,2479.6,2479.4,0.4065]
[1728287453664,6.0378,2479.6,2479.2,0.28235]
[1728287453665,6.32012,2479.6,2479.2,0.28235]
[1728287453870,6.0378,2479.6,2479.4,0.4065]
[1728287454267,6.32011,2479.6,2479.4,0.4065]
[1728287454565,6.32012,2479.6,2479.4,0.4065]
[1728287455365,6.0378,2479.6,2479.4,0.4065]
[1728287455563,0.28232,2479.5,2479.4,0.4065]
[1728287455761,6.0378,2479.6,2479.4,0.4065]
[1728287456368,6.32011,2479.6,2479.4,0.4065]
[1728287456763,6.0378,2479.6,2479.4,0.4065]
[1728287457068,6.32011,2479.6,2479.4,0.4065]
[1728287458070,3.11231,2479.6,2479.4,0.4065]
[1728287459567,2.83,2479.6,2479.4,0.4065]
[1728287460468,3.11231,2479.6,2479.4,0.4065]
[1728287461968,0.4234,2480.0,2479.5,4.54550547]
[1728287462170,0.4234,2480.0,2479.8,0.28229]
[1728287462371,0.4234,2480.0,2479.9,0.4176]
[1728287466073,0.4234,2480.0,2479.9,0.69988]
[1728287467576,3.2078,2480.2,2480.1,0.28226]
[1728287469573,3.2078,2480.2,2479.9,0.4176]
[1728287469574,6.0378,2480.2,2479.9,0.4176]
[1728287469766,6.70515,2480.2,2479.9,0.69988]
[1728287469980,3.2078,2480.9,2480.1,2.83]
[1728287470285,3.11216,2481.0,2480.6,0.28219]
[1728287470480,0.4136,2480.9,2480.7,0.70758]
[1728287470676,0.4136,2480.9,2480.7,0.4254]
[1728287471775,3.2078,2481.3,2480.7,0.4254]
[1728287471776,3.2078,2481.3,2481.1,0.28214]
[1728287471974,3.2078,2481.3,2480.8,3.216]
[1728287472170,0.2821,2481.5,2481.1,0.28214]
[1728287472373,6.31989,2481.6,2481.1,0.28214]
[1728287472675,6.0378,2481.6,2481.2,0.4043]
[1728287472882,3.2078,2481.6,2481.4,0.28211]
[1728287473176,3.2078,2481.6,2481.2,0.4043]
[1728287473177,3.2078,2481.6,2481.3,0.28211]
[1728287474375,1.88605,2482.2,2481.2,0.4043]
[1728287474376,3.2078,2482.3,2481.4,2.83]
[1728287474585,3.2361,2482.2,2481.7,0.28207]
[1728287474879,3.2361,2482.2,2481.4,6.0378]
[1728287475179,3.51812,2482.2,2481.4,6.0378]
[1728287475376,0.28204,2482.1,2481.4,6.0378]
[1728287475577,0.28204,2482.0,2481.6,0.28208]
[1728287476275,3.48985,2482.0,2481.5,0.28209]
[1728287476473,3.2078,2482.0,2481.4,6.0378]
[1728287476778,3.48985,2482.0,2481.6,0.28208]
[1728287476984,6.31985,2482.0,2481.6,0.28208]
[1728287477184,6.31985,2482.0,2481.5,0.28209]
[1728287477571,6.31985,2482.0,2481.5,0.2821]
[1728287478185,6.0378,2482.0,2481.6,0.28208]
[1728287478486,3.2078,2482.0,2481.6,0.28208]
[1728287479683,3.48984,2482.0,2481.5,0.28209]
[1728287480475,3.48984,2482.0,2481.6,0.28208]
[1728287481085,3.2078,2482.0,2481.6,0.28208]
[1728287481383,3.2078,2482.0,2481.7,0.403]
[1728287481587,3.2361,2482.2,2481.8,0.28206]
[1728287482191,0.4061,2482.2,2481.9,0.28204]
[1728287482683,0.4061,2482.2,2481.8,3.11206]
[1728287483082,0.4061,2482.2,2482.0,2.83]
[1728287483389,0.4146,2482.5,2482.1,0.28203]
[1728287483390,0.28198,2482.5,2482.1,0.28203]
[1728287483589,0.3982,2482.4,2482.2,0.4134]
[1728287484179,0.3982,2482.4,2482.2,0.69541]
[1728287485186,0.3982,2482.4,2482.2,0.4134]
[1728287485385,0.3982,2482.4,2482.3,0.28201]
[1728287491494,0.3982,2482.4,2482.2,0.69541]
[1728287491891,0.3982,2482.4,2482.3,0.28201]
[1728287492096,0.3982,2482.4,2482.2,0.69541]
[1728287493993,0.3982,2482.4,2482.2,0.4134]
[1728287494198,0.3982,2482.4,2482.3,0.28201]
[1728287496393,0.3982,2482.4,2482.0,3.2078]
[1728287496587,0.28201,2482.3,2482.0,3.48983]
[1728287496785,3.2282,2482.4,2482.0,3.48983]
[1728287496986,0.28201,2482.3,2482.0,3.48983]
[1728287497186,3.2282,2482.4,2482.1,0.28202]
[1728287497585,0.6802,2482.4,2482.0,3.48983]
[1728287497793,0.28201,2482.3,2482.0,3.48983]
[1728287498398,0.3982,2482.4,2482.1,0.28202]
[1728287498593,0.6802,2482.4,2482.1,0.28202]
[1728287498792,0.28201,2482.3,2482.0,3.48983]
[1728287499203,0.3982,2482.4,2482.0,3.2078]
[1728287499509,0.28201,2482.3,2482.0,3.48983]
[1728287500700,0.28201,2482.3,2482.0,3.2078]
[1728287500893,0.28202,2482.2,2482.0,3.2078]
[1728287501093,0.28201,2482.3,2482.0,3.48983]
[1728287501703,0.3982,2482.4,2482.0,3.2078]
[1728287502001,0.6802,2482.4,2482.1,0.28202]
[1728287502507,0.3982,2482.4,2481.9,0.4167]
[1728287502805,0.6802,2482.4,2482.0,0.28204]
[1728287503001,0.6802,2482.4,2482.1,0.28203]
[1728287503794,0.6802,2482.4,2482.0,0.28203]
[1728287504407,0.6802,2482.4,2482.1,0.28203]
[1728287504802,0.6802,2482.4,2481.9,3.6245]
[1728287505003,0.6802,2482.4,2482.0,0.28203]
[1728287505706,0.3982,2482.4,2481.9,3.6245]
[1728287505907,0.6802,2482.4,2482.1,0.28202]
[1728287506213,0.6802,2482.4,2481.9,0.69874]
[1728287506214,0.28201,2482.3,2481.9,0.69874]
[1728287506512,0.28202,2482.2,2481.9,0.69874]
[1728287506806,0.4224,2482.1,2481.9,0.69874]
[1728287507211,0.4008,2482.0,2481.9,0.69874]
[1728287507406,0.4008,2482.0,2481.9,0.69875]
[1728287514714,0.4008,2482.0,2481.9,0.4167]
[1728287515213,0.4008,2482.0,2481.9,0.69875]
[1728287516705,0.4204,2482.4,2481.9,0.92797163]
[1728287516911,0.4197,2482.2,2482.1,0.28202]
[1728287517107,0.28196,2482.7,2482.4,0.28199]
[1728287517307,0.28196,2482.7,2482.6,0.28197]
[1728287517308,0.4197,2482.7,2482.6,0.28197]
[1728287517708,4.4477,2482.7,2482.6,0.28197]
[1728287517905,4.4477,2482.7,2482.5,0.3923]
[1728287518105,0.4197,2482.7,2482.5,0.67428]
[1728287519513,0.4197,2482.7,2482.6,0.28197]
[1728287519714,0.4197,2482.7,2482.5,0.67427]
[1728287520016,0.4197,2482.7,2482.6,0.28197]
[1728287521014,0.4197,2482.7,2482.6,0.79395556]
[1728287521422,3.2078,2482.8,2482.7,0.28196]
[1728287521618,3.2078,2482.8,2482.6,0.28196]
[1728287521818,3.2078,2482.8,2482.5,0.67427]
[1728287522321,3.2078,2482.8,2482.5,0.3923]
[1728287522522,3.2078,2482.8,2482.7,0.28196]
[1728287522718,3.2078,2482.8,2482.6,0.28197]
[1728287523824,3.2078,2482.8,2482.7,0.28196]
[1728287524019,3.2078,2482.8,2482.5,0.3923]
[1728287524221,3.2078,2482.8,2482.7,0.28196]
[1728287524422,12.78228248,2483.6,2482.7,3.34210171]
[1728287524724,12.78228248,2483.6,2483.1,0.28191]
[1728287524725,0.3931,2483.4,2483.1,0.28191]
[1728287524914,0.3931,2483.4,2483.2,0.4132]
[1728287524915,0.67498,2483.4,2483.2,0.4132]
[1728287525422,0.3931,2483.4,2483.2,0.4132]
[1728287525620,0.3931,2483.4,2483.3,0.28189]
[1728287526226,0.3931,2483.4,2483.2,0.6951]